bitfinex/quotes_BTCUSD_20220120
["timestamp","ask_amount","ask_price","bid_price","bid_amount"]
[1642660960190,1.822e-05,42036.0,42035.0,0.83125938]
[1642660960392,0.00399601,42055.0,42040.0,0.00125598]
[1642660960588,0.00399601,42055.0,42040.0,1.28400198]
[1642660960792,0.05958338,42059.0,42040.0,1.28400198]
[1642660960992,0.27482994,42058.0,42040.0,2.03865809]
[1642660961789,0.27482994,42058.0,42040.0,2.06065809]
[1642660961989,0.27482994,42058.0,42040.0,2.01065809]
[1642660962188,0.05946273,42057.0,42040.0,2.01065809]
[1642660962642,2.51116461,42053.0,42040.0,2.01065809]
[1642660963041,0.059466,42056.0,42040.0,2.01065809]
[1642660963246,0.11893009,42056.0,42040.0,2.01065809]
[1642660963643,0.11893009,42056.0,42040.0,1.98865809]
[1642660963844,0.11893009,42056.0,42040.0,2.02955971]
[1642660964045,0.05946409,42056.0,42040.0,2.02955971]
[1642660964549,0.0008899,42043.0,42040.0,2.02955971]
[1642660965044,0.0008899,42043.0,42040.0,2.03045265]
[1642660965245,0.0008899,42043.0,42040.0,1.99345265]
[1642660965646,0.32895603,42051.0,42040.0,2.02945265]
[1642660965647,0.05947526,42049.0,42040.0,2.02945265]
[1642660965845,0.0008899,42043.0,42040.0,2.02945265]
[1642660966893,0.05947526,42049.0,42040.0,1.99345265]
[1642660967193,0.0008899,42043.0,42040.0,1.99345265]
[1642660967791,0.0008899,42043.0,42040.0,2.01845265]
[1642660967991,0.32895603,42051.0,42040.0,2.01845265]
[1642660968191,0.0008899,42043.0,42040.0,2.01845265]
[1642660968990,0.0008899,42043.0,42040.0,1.99345265]
[1642660969191,0.32895603,42051.0,42040.0,1.99345265]
[1642660969391,0.0008899,42043.0,42040.0,1.99345265]
[1642660969793,0.0008899,42043.0,42040.0,2.07940265]
[1642660970481,0.00012038,42059.0,42040.0,2.07940265]
[1642660970679,0.0008899,42043.0,42040.0,2.07940265]
[1642660970882,0.0008899,42043.0,42040.0,2.05540265]
[1642660971080,0.0008899,42043.0,42040.0,2.09117318]
[1642660971681,0.05946402,42056.0,42040.0,2.12917318]
[1642660971881,0.0008899,42043.0,42040.0,2.12917318]
[1642660972680,0.0008899,42043.0,42040.0,2.07917318]
[1642660972885,0.248766,42051.0,42040.0,2.07917318]
[1642660973181,0.0008899,42043.0,42040.0,2.04117318]
[1642660973784,0.0008899,42043.0,42040.0,2.07417318]
[1642660973988,0.248766,42051.0,42040.0,2.07417318]
[1642660974194,0.0008899,42043.0,42040.0,2.07417318]
[1642660975188,0.248766,42051.0,42040.0,2.04117318]
[1642660975388,0.0008899,42043.0,42040.0,2.04117318]
[1642660975891,0.0008899,42043.0,42040.0,2.07717318]
[1642660976491,0.248766,42051.0,42040.0,2.07717318]
[1642660976690,0.0008899,42043.0,42040.0,2.07717318]
[1642660977090,0.2823149,42041.0,42040.0,2.04117318]
[1642660977743,0.2823149,42041.0,42040.0,2.07817318]
[1642660978946,0.2823149,42041.0,42040.0,2.09117318]
[1642660979741,0.2823149,42041.0,42040.0,2.12817318]
[1642660980941,0.2823149,42041.0,42040.0,2.09117318]
[1642660981786,0.2823149,42041.0,42040.0,2.12817318]
[1642660982791,0.2823149,42041.0,42040.0,2.07817318]
[1642660983090,0.2823149,42041.0,42040.0,2.04117318]
[1642660983890,0.2823149,42041.0,42040.0,2.07817318]
[1642660985137,0.2823149,42041.0,42040.0,2.04117318]
[1642660985338,0.2823149,42041.0,42040.0,2.0408804]
[1642660985738,0.2823149,42041.0,42040.0,2.0778804]
[1642660986742,0.2823149,42041.0,42040.0,1.2278804]
[1642660987137,0.2823149,42041.0,42040.0,1.1908804]
[1642660987739,0.2823149,42041.0,42040.0,1.2278804]
[1642660988339,0.0031,42064.0,42041.0,1.234846]
[1642660988544,0.0039594,42056.0,42046.0,0.00121354]
[1642660988742,0.0039594,42056.0,42047.0,0.432746]
[1642660988996,0.922,42062.0,42048.0,1.17522032]
[1642660989196,0.0031,42064.0,42051.0,0.00120965]
[1642660989400,0.00039537,42057.0,42055.0,0.68054363]
[1642660989597,0.00039537,42057.0,42056.0,0.95830427]
[1642660989795,0.0031,42064.0,42056.0,0.95830427]
[1642660990194,0.00048132,42062.0,42056.0,0.95830427]
[1642660990596,0.00046413,42061.0,42057.0,0.2495995]
[1642660990793,0.00046413,42061.0,42058.0,0.432746]
[1642660990994,0.00044694,42060.0,42058.0,0.432746]
[1642660991194,0.00044694,42060.0,42059.0,0.26775278]
[1642660991394,0.00095282,42061.0,42059.0,0.65259878]
[1642660991595,0.00095282,42061.0,42060.0,0.64069232]
[1642660992001,0.00046413,42061.0,42060.0,0.64069232]
[1642660993844,0.00195284,42063.0,42060.0,0.65790576]
[1642660994440,0.001,42063.0,42060.0,0.65790576]
[1642660995042,0.001,42063.0,42060.0,0.64190576]
[1642660995344,0.001,42063.0,42061.0,0.00038163]
[1642660995944,0.001,42063.0,42061.0,0.01038163]
[1642660997200,0.001,42063.0,42061.0,0.00038163]
[1642660997993,0.001,42063.0,42061.0,0.01038163]
[1642660998792,0.001,42063.0,42062.0,0.00192127]
[1642660999796,0.001,42063.0,42062.0,0.01292127]
[1642661000249,0.001,42063.0,42062.0,0.01363418]
[1642661001048,0.001,42063.0,42062.0,0.00263418]
[1642661002048,0.001,42063.0,42062.0,0.01363418]
[1642661003151,0.001,42063.0,42062.0,0.00263418]
[1642661003750,0.001,42063.0,42062.0,0.00358206]
[1642661003992,0.001,42063.0,42062.0,0.01158206]
[1642661005096,0.001,42063.0,42062.0,0.00358206]
[1642661005893,0.001,42063.0,42062.0,0.01658206]
[1642661006994,0.0505064,42066.0,42063.0,0.28657337]
[1642661007396,6.876e-05,42065.0,42063.0,0.28657337]
[1642661007840,6.876e-05,42065.0,42063.0,0.29557337]
[1642661008040,6.876e-05,42065.0,42063.0,0.009]
[1642661008642,2.28835744,42064.0,42063.0,0.009]
[1642661008847,2.33835744,42064.0,42063.0,0.009]
[1642661009241,2.64904123,42064.0,42062.0,0.00071291]
[1642661009449,2.70849923,42064.0,42062.0,0.00071291]
[1642661009941,0.42014179,42064.0,42062.0,0.01071291]
[1642661010141,0.42014179,42064.0,42063.0,0.00036348]
[1642661010346,0.109458,42064.0,42063.0,0.00036348]
[1642661010541,0.05006876,42065.0,42063.0,0.00036348]
[1642661010942,6.876e-05,42065.0,42063.0,0.00036348]
[1642661011496,6.876e-05,42065.0,42063.0,0.27859299]
[1642661011698,6.876e-05,42065.0,42064.0,0.55]
[1642661011996,6.876e-05,42065.0,42064.0,0.934846]
[1642661012796,6.876e-05,42065.0,42064.0,0.384846]
[1642661013197,6.876e-05,42065.0,42064.0,0.61484364]
[1642661013398,6.876e-05,42065.0,42064.0,0.8961035]
[1642661013597,6.876e-05,42065.0,42064.0,0.61484364]
[1642661013796,6.876e-05,42065.0,42064.0,0.62650777]
[1642661013996,6.876e-05,42065.0,42064.0,0.89746059]
[1642661015240,0.00121279,42068.0,42065.0,0.834846]
[1642661015844,0.00121279,42068.0,42065.0,0.391846]
[1642661017055,0.00121279,42068.0,42065.0,0.384846]
[1642661017844,0.00121279,42068.0,42065.0,0.392846]
[1642661018898,0.00121279,42068.0,42067.0,0.00265634]
[1642661019901,0.00121279,42068.0,42067.0,0.00865634]
[1642661020303,0.00121279,42068.0,42067.0,0.00899077]
[1642661021101,0.00121279,42068.0,42067.0,0.00299077]
[1642661021902,0.00121279,42068.0,42067.0,0.01599077]
[1642661023745,0.00121279,42068.0,42067.0,0.00299077]
[1642661023945,0.00121279,42068.0,42067.0,0.01099077]
[1642661024148,0.00121279,42068.0,42067.0,0.01016247]
[1642661025147,0.00121279,42068.0,42067.0,0.00216247]
[1642661025448,2.07282497,42069.0,42067.0,0.00248458]
[1642661028498,0.3243537,42069.0,42067.0,0.00248458]
[1642661028799,0.3243537,42069.0,42067.0,0.00065654]
[1642661029796,0.01721279,42069.0,42067.0,0.00065654]
[1642661030245,0.01721279,42069.0,42068.0,0.00030335]
[1642661030746,0.01728155,42069.0,42068.0,0.00030335]
[1642661030947,0.01728155,42069.0,42068.0,0.32977643]
[1642661031356,0.01728155,42069.0,42068.0,0.6456921]
[1642661031948,0.01728155,42069.0,42068.0,0.6536921]
[1642661032150,0.01728155,42069.0,42068.0,0.9020617]
[1642661032351,0.01728155,42069.0,42068.0,0.6536921]
[1642661032550,0.01728155,42069.0,42068.0,0.32421902]
[1642661032752,0.01728155,42069.0,42068.0,0.00830335]
[1642661033354,0.01728155,42069.0,42068.0,0.00030335]
[1642661033750,0.01728155,42069.0,42068.0,0.00151415]
[1642661033999,0.01728155,42069.0,42068.0,0.00951415]
[1642661035095,0.01728155,42069.0,42068.0,0.00151415]
[1642661035295,0.01728155,42069.0,42068.0,0.00182832]
[1642661035900,0.01728155,42069.0,42068.0,0.01182832]
[1642661037097,0.01728155,42069.0,42068.0,0.00182832]
[1642661037745,0.01228155,42069.0,42068.0,0.00182832]
[1642661038746,0.01228155,42069.0,42068.0,0.00213103]
[1642661039748,0.27844673,42069.0,42068.0,0.00213103]
[1642661040145,0.27844673,42069.0,42068.0,0.0024392]
[1642661041247,0.01228155,42069.0,42068.0,0.0024392]
[1642661048900,0.08941136,42069.0,42068.0,0.0024392]
[1642661050697,0.08441136,42069.0,42068.0,0.0024392]
[1642661051704,0.08307136,42069.0,42068.0,0.0024392]
[1642661054357,0.1181249,42069.0,42068.0,0.0024392]
[1642661056499,0.1181939,42069.0,42068.0,0.0024392]
[1642661058301,0.39177939,42069.0,42068.0,0.0024392]
[1642661058705,0.05946093,42066.0,42062.0,0.00108866]
[1642661058902,0.45610723,42065.0,42062.0,0.00108866]
[1642661059100,0.73330604,42065.0,42062.0,0.00108866]
[1642661059310,0.19125356,42059.0,42053.0,0.95815256]
[1642661059502,0.28915356,42059.0,42053.0,0.95815256]
[1642661059702,0.53490533,42059.0,42058.0,0.00032033]
[1642661060146,0.34665177,42059.0,42058.0,0.00032033]
[1642661060545,0.34365177,42059.0,42058.0,0.00032033]
[1642661061048,0.107369,42059.0,42058.0,0.38516633]
[1642661061749,0.097369,42059.0,42058.0,0.38516633]
[1642661061945,0.106369,42059.0,42058.0,0.00032033]
[1642661062147,0.156369,42059.0,42058.0,0.00032033]
[1642661062345,0.151369,42059.0,42058.0,0.00032033]
[1642661062551,2.50237055,42059.0,42058.0,0.00032033]
[1642661062948,2.80293652,42059.0,42058.0,0.00032033]
[1642661063148,2.85293652,42059.0,42058.0,0.00032033]
[1642661063347,2.84393652,42059.0,42058.0,0.00032033]
[1642661063999,2.86493652,42059.0,42058.0,0.00032033]
[1642661065204,2.84420261,42059.0,42058.0,0.00080622]
[1642661065401,0.49320106,42059.0,42058.0,0.00080622]
[1642661065603,0.43373206,42059.0,42058.0,0.00080622]
[1642661066003,0.44173206,42059.0,42058.0,0.00080622]
[1642661067304,0.43373206,42059.0,42058.0,0.00080622]
[1642661067752,0.38373206,42059.0,42058.0,0.00080622]
[1642661067948,0.41873206,42059.0,42058.0,0.00080622]
[1642661068350,0.51265734,42059.0,42058.0,0.00080622]
[1642661068553,0.56265734,42059.0,42058.0,0.00080622]
[1642661068949,0.46873206,42059.0,42058.0,0.00080622]
[1642661069351,0.56873206,42059.0,42058.0,0.00080622]
[1642661069557,0.75,42058.0,42056.0,0.00108873]
[1642661069752,0.45,42056.0,42042.0,0.28250492]
[1642661069955,0.11897,42054.0,42042.0,0.28250492]
[1642661070259,0.0479,42053.0,42043.0,0.00025785]
[1642661070460,0.25547519,42046.0,42043.0,0.00025785]
[1642661070652,0.0479,42045.0,42043.0,0.00025785]
[1642661072108,0.0529,42045.0,42044.0,0.784846]
[1642661072508,0.0529,42045.0,42044.0,0.78508666]
[1642661072913,0.005,42045.0,42044.0,0.78508666]
[1642661073108,0.005,42045.0,42044.0,1.23508666]
[1642661073308,0.05947,42052.0,42049.0,0.28088836]
[1642661073711,0.24529204,42056.0,42050.0,0.00013752]
[1642661073909,0.00019957,42059.0,42050.0,0.00013752]
[1642661074111,0.00019957,42059.0,42050.0,0.24699651]
[1642661074310,0.05966336,42059.0,42053.0,0.21452518]
[1642661074712,0.00019957,42059.0,42054.0,6.876e-05]
[1642661074909,0.00019957,42059.0,42056.0,0.33259389]
[1642661075180,0.00094279,42064.0,42057.0,0.66812003]
[1642661075584,8.595e-05,42063.0,42057.0,0.66812003]
[1642661075783,8.595e-05,42063.0,42056.0,0.33259389]
[1642661075984,6.876e-05,42062.0,42057.0,0.026]
[1642661076179,6.876e-05,42062.0,42057.0,0.26582282]
[1642661076381,8.595e-05,42063.0,42057.0,0.26582282]
[1642661076580,8.595e-05,42063.0,42057.0,0.026]
[1642661076780,6.876e-05,42062.0,42057.0,0.026]
[1642661077180,6.876e-05,42062.0,42056.0,0.33259389]
[1642661077981,6.876e-05,42062.0,42056.0,0.68404067]
[1642661078483,6.876e-05,42062.0,42056.0,0.35259389]
[1642661078684,0.16398582,42063.0,42057.0,0.45]
[1642661078912,0.16398582,42063.0,42056.0,0.02]
[1642661078913,0.21398582,42063.0,42056.0,0.02]
[1642661079102,0.0479,42062.0,42058.0,6.876e-05]
[1642661079300,0.16683476,42062.0,42057.0,8.595e-05]
[1642661079501,0.05,42061.0,42057.0,8.595e-05]
[1642661079705,0.166832,42060.0,42056.0,0.00010314]
[1642661080107,0.216832,42060.0,42059.0,0.00048566]
[1642661080402,0.157366,42060.0,42059.0,0.00048566]
[1642661081802,0.107366,42060.0,42059.0,0.00048566]
[1642661082002,0.119366,42060.0,42059.0,0.00048566]
[1642661082648,0.071466,42060.0,42059.0,0.00048566]
[1642661082847,0.121466,42060.0,42059.0,0.00048566]
[1642661083246,0.109466,42060.0,42059.0,0.00048566]
[1642661084048,0.072466,42060.0,42059.0,0.00048566]
[1642661085350,0.059466,42060.0,42056.0,0.0005888]
[1642661085552,0.059465,42059.0,42056.0,0.0005888]
[1642661085752,0.11893348,42059.0,42057.0,8.595e-05]
[1642661085956,0.16893348,42059.0,42057.0,8.595e-05]
[1642661086150,0.18293348,42059.0,42057.0,8.595e-05]
[1642661087199,0.12346848,42059.0,42057.0,8.595e-05]
[1642661087399,0.10946848,42059.0,42057.0,8.595e-05]
[1642661087600,0.05,42059.0,42057.0,8.595e-05]
[1642661088002,0.015,42059.0,42057.0,8.595e-05]
[1642661088415,0.074465,42059.0,42057.0,8.595e-05]
[1642661088804,0.122365,42059.0,42057.0,8.595e-05]
[1642661089204,0.0629,42059.0,42057.0,8.595e-05]
[1642661089503,0.0479,42059.0,42057.0,8.595e-05]
[1642661090147,0.00023282,42059.0,42058.0,0.00048584]
[1642661090552,0.00023282,42059.0,42058.0,0.0005546]
[1642661090748,0.01623282,42059.0,42058.0,0.0005546]
[1642661092149,0.01923282,42059.0,42058.0,0.0005546]
[1642661093355,0.00023282,42059.0,42058.0,0.0005546]
[1642661093757,0.00765023,42059.0,42058.0,0.0005546]
[1642661094006,0.02365023,42059.0,42058.0,0.0005546]
[1642661095407,0.00765023,42059.0,42058.0,0.0005546]
[1642661096106,0.02565023,42059.0,42058.0,0.0005546]
[1642661097308,0.00765023,42059.0,42058.0,0.0005546]
[1642661098159,0.27365023,42059.0,42058.0,0.0005546]
[1642661098558,0.02365023,42059.0,42058.0,0.0005546]
[1642661099456,0.00765023,42059.0,42058.0,0.0005546]
[1642661100057,0.02365023,42059.0,42058.0,0.0005546]
[1642661101504,0.00765023,42059.0,42058.0,0.0005546]
[1642661102099,0.02365023,42059.0,42058.0,0.0005546]
[1642661102500,0.11893585,42057.0,42052.0,0.24125935]
[1642661102699,0.059468,42056.0,42054.0,0.00108876]
[1642661102898,0.11893509,42056.0,42054.0,0.00108876]
[1642661103101,0.109468,42056.0,42054.0,0.00108876]
[1642661103700,0.109468,42056.0,42053.0,8.595e-05]
[1642661103901,0.109468,42056.0,42053.0,0.00117469]
[1642661104107,0.119468,42056.0,42054.0,0.01]
[1642661104300,0.119468,42056.0,42054.0,0.01006876]
[1642661104499,2.57132335,42055.0,42054.0,0.01006876]
[1642661104702,0.119468,42056.0,42054.0,0.01006876]
[1642661104905,0.05,42055.0,42054.0,0.01006876]
[1642661105153,0.06,42056.0,42054.0,0.01006876]
[1642661105355,0.00055681,42055.0,42054.0,6.876e-05]
[1642661105552,0.00055681,42055.0,42054.0,0.38491476]
[1642661106154,0.02055681,42055.0,42054.0,0.39091476]
[1642661107355,0.00055681,42055.0,42054.0,0.38491476]
[1642661108158,0.02055681,42055.0,42054.0,0.39091476]
[1642661108755,0.02796977,42055.0,42054.0,0.39091476]
[1642661109412,0.02340293,42055.0,42054.0,0.38491476]
[1642661109609,0.03883609,42055.0,42054.0,0.38491476]
[1642661110308,0.04883609,42055.0,42054.0,0.01063652]
[1642661111205,0.04883609,42055.0,42054.0,0.39548252]
[1642661111811,0.04883609,42055.0,42054.0,0.01063652]
[1642661112013,0.03883609,42055.0,42054.0,0.00063652]
[1642661112207,0.03883609,42055.0,42054.0,0.00763652]
[1642661112208,0.05183609,42055.0,42054.0,0.00763652]
[1642661112765,0.05183609,42055.0,42054.0,0.39248252]
[1642661113366,0.03883609,42055.0,42054.0,0.38548252]
[1642661113567,0.03883609,42055.0,42054.0,0.00063652]
[1642661113769,0.03289171,42055.0,42054.0,0.00063652]
[1642661113969,0.0386036,42055.0,42054.0,0.00063652]
[1642661114168,0.0486036,42055.0,42054.0,0.01063652]
[1642661115370,0.0386036,42055.0,42054.0,0.00063652]
[1642661116068,0.0496036,42055.0,42054.0,0.00963652]
[1642661117501,0.0386036,42055.0,42054.0,0.00063652]
[1642661118103,0.0476036,42055.0,42054.0,0.01063652]
[1642661118702,0.09019064,42055.0,42054.0,0.01181265]
[1642661119506,0.08119064,42055.0,42054.0,0.00181265]
[1642661119906,0.03119064,42055.0,42054.0,0.00181265]
[1642661120177,0.03919064,42055.0,42054.0,0.01281265]
[1642661120780,0.03919064,42055.0,42054.0,0.39765865]
[1642661120977,0.03919064,42055.0,42054.0,0.58263762]
[1642661121179,0.03919064,42055.0,42054.0,0.47360775]
[1642661121379,0.03119064,42055.0,42054.0,0.46260775]
[1642661121577,0.03119064,42055.0,42054.0,1.41260775]
[1642661121778,0.03119064,42055.0,42054.0,1.42455775]
[1642661122178,0.03119064,42055.0,42054.0,10.84082601]
[1642661123380,0.03119064,42055.0,42054.0,10.22455775]
[1642661123779,0.03112736,42055.0,42054.0,10.22562867]
[1642661124004,0.03112736,42055.0,42054.0,10.83247945]
[1642661124210,0.03112736,42055.0,42054.0,10.84447945]
[1642661125205,0.03086632,42055.0,42054.0,10.84447945]
[1642661125407,0.00094509,42064.0,42055.0,0.85]
[1642661125608,0.20955087,42063.0,42062.0,0.0012932]
[1642661125817,0.20955087,42063.0,42062.0,1.51356549]
[1642661126010,0.20963682,42063.0,42062.0,1.51356549]
[1642661126209,0.20963682,42063.0,42062.0,1.62156549]
[1642661126508,0.20963682,42063.0,42062.0,2.29739623]
[1642661126707,0.20963682,42063.0,42062.0,0.77156549]
[1642661127512,0.20963682,42063.0,42062.0,1.36356549]
[1642661127755,0.20963682,42063.0,42062.0,1.76855771]
[1642661128055,0.20963682,42063.0,42062.0,2.06868973]
[1642661128257,0.20963682,42063.0,42062.0,1.53458973]
[1642661128860,0.20963682,42063.0,42062.0,1.53650357]
[1642661130065,0.20963682,42063.0,42062.0,1.51897324]
[1642661130285,0.20963682,42063.0,42062.0,1.54297324]
[1642661131515,0.20963682,42063.0,42062.0,1.51897324]
[1642661131915,0.20963682,42063.0,42062.0,1.41897324]
[1642661132119,0.20963682,42063.0,42062.0,1.01398102]
[1642661132322,0.20963682,42063.0,42062.0,1.13598102]
[1642661133117,0.01885409,42073.0,42063.0,0.85]
[1642661133314,0.01885409,42073.0,42067.0,0.00127822]
[1642661133516,0.01885409,42073.0,42068.0,0.384846]
[1642661134217,0.01885409,42073.0,42068.0,0.400846]
[1642661134415,0.01885409,42073.0,42071.0,0.27307115]
[1642661136270,0.06885409,42073.0,42071.0,0.28007115]
[1642661138072,0.06885409,42073.0,42071.0,0.27307115]
[1642661138275,0.06885409,42073.0,42071.0,0.28007115]
[1642661138675,0.06885409,42073.0,42072.0,0.00139266]
[1642661139114,0.06902599,42073.0,42072.0,0.00139266]
[1642661139915,0.01902599,42073.0,42072.0,0.00139266]
[1642661140216,0.06902599,42073.0,42072.0,0.00474443]
[1642661140820,0.11902599,42073.0,42072.0,0.00474443]
[1642661141020,0.35902599,42073.0,42072.0,0.00474443]
[1642661141629,0.35902599,42073.0,42072.0,0.00174443]
[1642661142018,0.11902599,42073.0,42072.0,0.00174443]
[1642661143859,0.11402599,42073.0,42072.0,0.00174443]
[1642661145666,0.41585219,42073.0,42072.0,0.00174443]
[1642661146705,0.11402599,42073.0,42072.0,0.00174443]
[1642661150160,0.06402599,42073.0,42072.0,0.00174443]
[1642661150565,0.00027889,42074.0,42072.0,0.00302265]
[1642661153920,0.00027889,42074.0,42073.0,0.00094817]
[1642661155221,0.00027889,42074.0,42073.0,0.00154717]
[1642661157760,0.00027889,42074.0,42073.0,0.00147861]
[1642661158762,0.00027889,42074.0,42073.0,0.00326782]
[1642661163310,0.04817889,42074.0,42073.0,0.00201302]
[1642661163508,0.17885561,42074.0,42073.0,0.00201302]
[1642661163708,0.3,42073.0,42065.0,0.0012856]
[1642661163920,0.059456,42071.0,42069.0,0.00108853]
[1642661164109,0.31940389,42070.0,42069.0,0.00108853]
[1642661164308,0.49962878,42070.0,42066.0,0.00012033]
[1642661164510,0.49962878,42070.0,42069.0,6.876e-05]
[1642661164708,0.49962878,42070.0,42066.0,0.00012033]
[1642661164908,0.55908478,42070.0,42066.0,0.00012033]
[1642661165157,0.37885989,42070.0,42066.0,0.00012033]
[1642661165356,0.3791671,42070.0,42067.0,0.00050058]
[1642661165554,0.11970827,42074.0,42073.0,1.3800089]
[1642661165758,0.5027445,42074.0,42073.0,1.3800089]
[1642661165957,0.46441465,42074.0,42073.0,1.3800089]
[1642661166158,0.8058292,42074.0,42073.0,0.4286829]
[1642661166357,0.8058292,42074.0,42068.0,8.595e-05]
[1642661166358,0.80945979,42073.0,42068.0,8.595e-05]
[1642661166561,1.00735979,42073.0,42068.0,8.595e-05]
[1642661167358,0.30826938,42073.0,42068.0,8.595e-05]
[1642661167757,0.26772938,42073.0,42068.0,8.595e-05]
[1642661167956,0.36772938,42073.0,42068.0,8.595e-05]
[1642661168157,0.42718938,42073.0,42068.0,8.595e-05]
[1642661168358,0.43927979,42073.0,42068.0,8.595e-05]
[1642661168557,0.44018938,42073.0,42068.0,8.595e-05]
[1642661169214,0.38072959,42073.0,42068.0,8.595e-05]
[1642661169608,0.36682,42073.0,42068.0,8.595e-05]
[1642661169809,0.36773212,42073.0,42068.0,8.595e-05]
[1642661170106,0.00029847,42072.0,42070.0,0.00055108]
[1642661170305,0.0479,42071.0,42068.0,8.595e-05]
[1642661170506,0.157361,42071.0,42068.0,8.595e-05]
[1642661170707,0.11892,42070.0,42068.0,8.595e-05]
[1642661171024,0.4479,42069.0,42068.0,8.595e-05]
[1642661171407,0.5479,42069.0,42068.0,8.595e-05]
[1642661171810,0.1479,42069.0,42068.0,8.595e-05]
[1642661172012,1.0479,42069.0,42068.0,8.595e-05]
[1642661172215,0.90947,42068.0,42066.0,0.00108823]
[1642661172410,1.4971,42067.0,42066.0,0.00108823]
[1642661172674,0.118932,42064.0,42055.0,0.08486732]
[1642661172875,0.0479,42063.0,42054.0,8.80129364]
[1642661173079,0.107366,42063.0,42057.0,0.37373738]
[1642661173578,0.107366,42063.0,42058.0,0.0001719]
[1642661174380,0.116366,42063.0,42062.0,0.25872782]
[1642661174776,0.0569,42063.0,42062.0,0.25883096]
[1642661175279,0.05719897,42063.0,42062.0,0.25883096]
[1642661175777,0.04819897,42063.0,42062.0,0.25883096]
[1642661176411,0.05619897,42063.0,42062.0,0.25883096]
[1642661177615,0.04819897,42063.0,42062.0,0.67883096]
[1642661178016,0.04819897,42063.0,42062.0,0.9349015]
[1642661178214,0.04819897,42063.0,42062.0,0.67883096]
[1642661178413,0.05419897,42063.0,42062.0,0.67883096]
[1642661179618,0.04819897,42063.0,42062.0,0.67883096]
[1642661180267,0.04819897,42063.0,42062.0,0.67924666]
[1642661180268,0.04809932,42063.0,42062.0,0.67924666]
[1642661180469,0.05409932,42063.0,42062.0,0.67924666]
[1642661181766,0.04809932,42063.0,42062.0,0.67924666]
[1642661182368,0.05509932,42063.0,42062.0,0.67924666]
[1642661184114,0.04809932,42063.0,42062.0,0.67924666]
[1642661184312,0.05409932,42063.0,42062.0,0.67924666]
[1642661184719,0.05409932,42063.0,42062.0,0.42051884]
[1642661185118,0.11356032,42063.0,42062.0,0.42051884]
[1642661186116,0.10756032,42063.0,42062.0,0.42051884]
[1642661186315,0.11356032,42063.0,42062.0,0.42051884]
[1642661186816,0.05409932,42063.0,42062.0,0.42051884]
[1642661187322,0.00619932,42063.0,42062.0,0.42051884]
[1642661187517,0.00019932,42063.0,42062.0,0.42051884]
[1642661188361,0.01019932,42063.0,42062.0,0.42051884]
[1642661188564,0.01696129,42063.0,42062.0,0.42051884]
[1642661189661,0.00696129,42063.0,42062.0,0.42051884]
[1642661190464,0.02296129,42063.0,42062.0,0.42051884]
[1642661191533,0.00696129,42063.0,42062.0,0.42051884]
[1642661192332,0.01396129,42063.0,42062.0,0.42051884]
[1642661193834,0.00696129,42063.0,42062.0,0.42051884]
[1642661194436,0.01596129,42063.0,42062.0,0.42051884]
[1642661195657,0.00696129,42063.0,42062.0,0.42051884]
[1642661195857,0.00696129,42063.0,42062.0,0.4204485]
[1642661196457,0.01896129,42063.0,42062.0,0.4204485]
[1642661197567,0.00696129,42063.0,42062.0,0.4204485]
[1642661198460,0.02296129,42063.0,42062.0,0.4204485]
[1642661200314,0.00696129,42063.0,42062.0,0.4204485]
[1642661200513,0.01796129,42063.0,42062.0,0.4204485]
[1642661201716,0.00696129,42063.0,42062.0,0.4204485]
[1642661202515,0.01996129,42063.0,42062.0,0.4204485]
[1642661203764,0.00696129,42063.0,42062.0,0.4204485]
[1642661203961,0.00019932,42063.0,42062.0,0.4204485]
[1642661204363,0.01119932,42063.0,42062.0,0.4204485]
[1642661205662,0.00019932,42063.0,42062.0,0.4204485]
[1642661206515,0.00819932,42063.0,42062.0,0.4204485]
[1642661207920,0.04809932,42063.0,42062.0,0.4204485]
[1642661208515,0.05709932,42063.0,42062.0,0.4204485]
[1642661210163,0.0569,42063.0,42062.0,0.4204485]
[1642661210364,0.0599,42063.0,42062.0,0.4204485]
[1642661211666,0.0479,42063.0,42062.0,0.4204485]
[1642661212470,0.0589,42063.0,42062.0,0.4204485]
[1642661213668,0.0479,42063.0,42062.0,0.4204485]
[1642661214514,0.0609,42063.0,42062.0,0.4204485]
[1642661214916,0.34653512,42063.0,42062.0,0.4204485]
[1642661215619,0.33353512,42063.0,42062.0,0.4204485]
[1642661216419,0.34453512,42063.0,42062.0,0.4204485]
[1642661217019,0.0589,42063.0,42062.0,0.4204485]
[1642661217519,0.25,42062.0,42060.0,0.00108863]
[1642661217773,0.107369,42061.0,42060.0,0.00108863]
[1642661217972,0.157369,42061.0,42060.0,0.00108863]
[1642661218177,0.107369,42061.0,42060.0,0.00108863]
[1642661218571,0.117369,42061.0,42060.0,0.00108863]
[1642661218971,0.37805711,42061.0,42058.0,0.00108866]
[1642661219371,0.167369,42061.0,42058.0,0.00108866]
[1642661219971,0.167369,42061.0,42055.0,0.57847534]
[1642661220174,0.16779708,42061.0,42060.0,0.00049583]
[1642661220373,0.15779708,42061.0,42060.0,0.00049583]
[1642661220572,0.16579708,42061.0,42060.0,0.00049583]
[1642661221716,0.15779708,42061.0,42060.0,0.00049583]
[1642661222512,0.16779708,42061.0,42060.0,0.00049583]
[1642661223119,0.85,42060.0,42058.0,0.00108866]
[1642661223423,0.97833381,42059.0,42058.0,0.00108866]
[1642661223616,0.55948,42058.0,42055.0,0.42]
[1642661223816,0.6471,42057.0,42055.0,0.42]
[1642661224020,1.04648681,42057.0,42055.0,0.42]
[1642661224217,1.10596637,42057.0,42055.0,0.42]
[1642661224417,0.08043381,42056.0,42055.0,0.42]
[1642661224718,0.12779709,42056.0,42055.0,0.42]
[1642661224917,0.0479,42056.0,42055.0,0.42]
[1642661225769,0.11912364,42058.0,42055.0,0.67704571]
[1642661225770,0.05964364,42058.0,42055.0,0.67704571]
[1642661226168,0.00016364,42058.0,42055.0,0.67704571]
[1642661226568,0.02316364,42058.0,42055.0,0.67704571]
[1642661226968,0.02316364,42058.0,42056.0,0.17372899]
[1642661227169,0.02316364,42058.0,42057.0,0.255033]
[1642661227770,0.00016364,42058.0,42057.0,0.255033]
[1642661228070,0.00016364,42058.0,42055.0,0.42]
[1642661228475,0.00909859,42058.0,42055.0,0.42]
[1642661228916,0.059468,42057.0,42055.0,0.42]
[1642661229516,0.06856059,42058.0,42055.0,0.42]
[1642661229717,0.06856059,42058.0,42055.0,0.66885873]
[1642661230216,0.00017616,42057.0,42055.0,0.66885873]
[1642661230419,0.00017616,42057.0,42056.0,0.25127995]
[1642661230618,0.00017616,42057.0,42055.0,0.42]
[1642661230822,0.00017616,42057.0,42056.0,0.63333314]
[1642661231219,0.00017616,42057.0,42056.0,0.24848714]
[1642661231519,0.00017616,42057.0,42055.0,0.67033471]
[1642661231720,0.00017616,42057.0,42055.0,0.66896583]
[1642661231931,0.00017616,42057.0,42055.0,0.42]
[1642661232520,0.00817616,42057.0,42055.0,0.42]
[1642661233367,0.24817616,42057.0,42055.0,0.42]
[1642661233868,0.24223191,42057.0,42055.0,0.42]